[Event "Titled Tuesday Blitz April 12 Late 2022"]
[White "Moroni, Luca Jr"]
[Black "Xiong, Jeffery"]
[WhiteFideId "865834"]
[BlackFideId "2047640"]
[WhiteElo "2573"]
[BlackElo "2727"]
[Result "0-1"]
[Round "08"]
[TimeControl "180+1"]
[Date "2022.04.12"]
[WhiteClock "0:00:02"]
[BlackClock "0:00:15"]

1. c4 {[%clk 0:03:00]}  g6 {[%clk 0:02:59]} 2. d4 {[%clk 0:02:56]}  Bg7 {[%clk 0:02:59]} 3. g3 {[%clk 0:02:57]}  d6 {[%clk 0:02:58]} 4. Bg2 {[%clk 0:02:56]}  Nc6 {[%clk 0:02:59]} 5. Nf3 {[%clk 0:02:55]}  Bd7 {[%clk 0:02:59]} 6. Nc3 {[%clk 0:02:48]}  Qc8 {[%clk 0:02:59]} 7. h3 {[%clk 0:02:48]}  Nf6 {[%clk 0:02:57]} 8. Be3 {[%clk 0:02:47]}  O-O {[%clk 0:02:57]} 9. Qd2 {[%clk 0:02:46]}  e5 {[%clk 0:02:56]} 10. d5 {[%clk 0:02:36]}  Ne7 {[%clk 0:02:56]} 11. g4 {[%clk 0:02:34]}  h5 {[%clk 0:02:56]} 12. Bh6 {[%clk 0:02:31]}  hxg4 {[%clk 0:02:49]} 13. hxg4 {[%clk 0:02:29]}  Nxg4 {[%clk 0:02:50]} 14. Bxg7 {[%clk 0:02:16]}  Kxg7 {[%clk 0:02:51]} 15. Ne4 {[%clk 0:02:11]}  Rh8 {[%clk 0:02:34]} 16. O-O-O {[%clk 0:02:04]}  Rxh1 {[%clk 0:02:16]} 17. Rxh1 {[%clk 0:02:03]}  Ng8 {[%clk 0:01:56]} 18. Nfg5 {[%clk 0:01:56]}  N4h6 {[%clk 0:01:57]} 19. f4 {[%clk 0:01:48]}  Qe8 {[%clk 0:01:56]} 20. Qc3 {[%clk 0:01:42]}  f6 {[%clk 0:01:56]} 21. Nf3 {[%clk 0:01:36]}  Bf5 {[%clk 0:01:50]} 22. Nh4 {[%clk 0:00:46]}  exf4 {[%clk 0:01:38]} 23. Nxf5+ {[%clk 0:00:44]}  Nxf5 {[%clk 0:01:33]} 24. Ng5 {[%clk 0:00:39]}  Ng3 {[%clk 0:00:55]} 25. Rh7+ {[%clk 0:00:36]}  Kf8 {[%clk 0:00:56]} 26. Bf3 {[%clk 0:00:25]}  Qxe2 {[%clk 0:00:33]} 27. Ne6+ {[%clk 0:00:21]}  Ke8 {[%clk 0:00:34]} 28. Nxc7+ {[%clk 0:00:17]}  Kd8 {[%clk 0:00:34]} 29. Ne6+ {[%clk 0:00:17]}  Ke8 {[%clk 0:00:30]} 30. a3 {[%clk 0:00:06]}  Rc8 {[%clk 0:00:25]} 31. Ng7+ {[%clk 0:00:05]}  Kd7 {[%clk 0:00:20]} 32. Nf5+ {[%clk 0:00:03]}  Kd8 {[%clk 0:00:16]} 33. Nxg3 {[%clk 0:00:04]}  Qxc4 {[%clk 0:00:14]} 34. Ne4 {[%clk 0:00:02]}  Qf1+ {[%clk 0:00:14]} 35. Kd2 {[%clk 0:00:02]}  Rxc3 {[%clk 0:00:15]} 0-1


[Site "https://www.chess.com"]

[Event "Titled Tuesday Blitz April 12 Late 2022"]
[White "Moussard, Jules"]
[Black "Kamsky, Gata"]
[WhiteFideId "642908"]
[BlackFideId "2000024"]
[WhiteElo "2589"]
[BlackElo "2645"]
[Result "0-1"]
[Round "08"]
[TimeControl "180+1"]
[Date "2022.04.12"]
[WhiteClock "0:00:13"]
[BlackClock "0:01:13"]

1. f4 {[%clk 0:02:58]}  f5 {[%clk 0:02:58]} 2. Nf3 {[%clk 0:02:56]}  Nf6 {[%clk 0:02:58]} 3. b3 {[%clk 0:02:57]}  g6 {[%clk 0:02:57]} 4. Bb2 {[%clk 0:02:57]}  Bg7 {[%clk 0:02:58]} 5. g3 {[%clk 0:02:57]}  O-O {[%clk 0:02:57]} 6. Bg2 {[%clk 0:02:58]}  d6 {[%clk 0:02:57]} 7. O-O {[%clk 0:02:58]}  e5 {[%clk 0:02:56]} 8. fxe5 {[%clk 0:02:57]}  Ng4 {[%clk 0:02:56]} 9. Nc3 {[%clk 0:02:45]}  dxe5 {[%clk 0:02:54]} 10. e4 {[%clk 0:02:46]}  Nc6 {[%clk 0:02:44]} 11. Qe2 {[%clk 0:02:25]}  Be6 {[%clk 0:02:35]} 12. h3 {[%clk 0:02:16]}  Nf6 {[%clk 0:02:30]} 13. Ng5 {[%clk 0:02:16]}  Nd4 {[%clk 0:02:28]} 14. Qd3 {[%clk 0:02:16]}  Bd7 {[%clk 0:02:20]} 15. Rae1 {[%clk 0:02:06]}  Nh5 {[%clk 0:02:18]} 16. h4 {[%clk 0:01:47]}  f4 {[%clk 0:02:18]} 17. gxf4 {[%clk 0:01:11]}  Nxf4 {[%clk 0:02:14]} 18. Qc4+ {[%clk 0:01:11]}  Kh8 {[%clk 0:02:13]} 19. Nd5 {[%clk 0:01:04]}  Bb5 {[%clk 0:02:04]} 20. Qxc7 {[%clk 0:00:59]}  Bxf1 {[%clk 0:02:02]} 21. Rxf1 {[%clk 0:00:58]}  Qxc7 {[%clk 0:01:51]} 22. Nxc7 {[%clk 0:00:58]}  Rac8 {[%clk 0:01:50]} 23. Bxd4 {[%clk 0:00:47]}  exd4 {[%clk 0:01:49]} 24. Nb5 {[%clk 0:00:45]}  Ne2+ {[%clk 0:01:47]} 25. Kh2 {[%clk 0:00:45]}  Be5+ {[%clk 0:01:47]} 26. Kh3 {[%clk 0:00:44]}  Nf4+ {[%clk 0:01:47]} 27. Kg3 {[%clk 0:00:41]}  Rxc2 {[%clk 0:01:41]} 28. Nf3 {[%clk 0:00:29]}  Nh5+ {[%clk 0:01:38]} 29. Kf2 {[%clk 0:00:27]}  Rxd2+ {[%clk 0:01:36]} 30. Kg1 {[%clk 0:00:28]}  Rxf3 {[%clk 0:01:31]} 31. Rxf3 {[%clk 0:00:29]}  Nf4 {[%clk 0:01:30]} 32. Bf1 {[%clk 0:00:29]}  d3 {[%clk 0:01:29]} 33. Na3 {[%clk 0:00:26]}  Ne2+ {[%clk 0:01:24]} 34. Bxe2 {[%clk 0:00:20]}  dxe2 {[%clk 0:01:23]} 35. Kf2 {[%clk 0:00:21]}  Rxa2 {[%clk 0:01:23]} 36. Nc4 {[%clk 0:00:15]}  Bd4+ {[%clk 0:01:17]} 37. Ke1 {[%clk 0:00:15]}  b5 {[%clk 0:01:15]} 38. Nd2 {[%clk 0:00:14]}  b4 {[%clk 0:01:14]} 39. Kxe2 {[%clk 0:00:09]}  Bc3 {[%clk 0:01:14]} 40. Rd3 {[%clk 0:00:10]}  Kg7 {[%clk 0:01:14]} 41. e5 {[%clk 0:00:10]}  Rxd2+ {[%clk 0:01:12]} 42. Rxd2 {[%clk 0:00:10]}  Bxd2 {[%clk 0:01:13]} 43. Kxd2 {[%clk 0:00:11]}  Kf7 {[%clk 0:01:13]} 44. Kd3 {[%clk 0:00:11]}  Ke6 {[%clk 0:01:13]} 45. Ke4 {[%clk 0:00:11]}  a5 {[%clk 0:01:13]} 46. Kd4 {[%clk 0:00:12]}  h6 {[%clk 0:01:13]} 47. Kc4 {[%clk 0:00:11]}  Kxe5 {[%clk 0:01:13]} 48. Kb5 {[%clk 0:00:12]}  Kd5 {[%clk 0:01:13]} 49. Kxa5 {[%clk 0:00:13]}  Kc5 {[%clk 0:01:13]} 0-1


[Site "https://www.chess.com"]

[Event "Titled Tuesday Blitz April 12 Late 2022"]
[White "Nazaretyan, Tigran"]
[Black "Sheng, Joshua"]
[WhiteFideId "24162345"]
[BlackFideId "2057360"]
[WhiteElo "2225"]
[BlackElo "2142"]
[Result "1-0"]
[Round "08"]
[TimeControl "180+1"]
[Date "2022.04.12"]
[WhiteClock "0:02:27"]
[BlackClock "0:02:54"]

1. d4 {[%clk 0:03:00]}  Nf6 {[%clk 0:03:00]} 2. c4 {[%clk 0:03:00]}  c6 {[%clk 0:03:00]} 3. Nf3 {[%clk 0:02:59]}  d5 {[%clk 0:03:00]} 4. Nc3 {[%clk 0:03:00]}  a6 {[%clk 0:02:59]} 5. e3 {[%clk 0:02:59]}  b5 {[%clk 0:02:58]} 6. b3 {[%clk 0:02:56]}  Bg4 {[%clk 0:02:56]} 7. Be2 {[%clk 0:02:56]}  e6 {[%clk 0:02:55]} 8. h3 {[%clk 0:02:55]}  Bh5 {[%clk 0:02:55]} 9. O-O {[%clk 0:02:55]}  Nbd7 {[%clk 0:02:55]} 10. Bb2 {[%clk 0:02:55]}  Bd6 {[%clk 0:02:55]} 11. Ne5 {[%clk 0:02:55]}  Bxe2 {[%clk 0:02:55]} 12. Nxe2 {[%clk 0:02:56]}  Qc7 {[%clk 0:02:55]} 13. cxd5 {[%clk 0:02:52]}  cxd5 {[%clk 0:02:56]} 14. Rc1 {[%clk 0:02:52]}  Qb8 {[%clk 0:02:56]} 15. Nxd7 {[%clk 0:02:43]}  Kxd7 {[%clk 0:02:57]} 16. Rc2 {[%clk 0:02:31]}  Qb6 {[%clk 0:02:55]} 17. Qd3 {[%clk 0:02:27]}  Rac8 {[%clk 0:02:53]} 18. Rfc1 {[%clk 0:02:27]}  Rxc2 {[%clk 0:02:53]} 19. Qxc2 {[%clk 0:02:27]}  Rc8 {[%clk 0:02:54]} 1-0


[Site "https://www.chess.com"]

[Event "Titled Tuesday Blitz April 12 Late 2022"]
[White "Novikova, Galina"]
[Black "Akrakan"]
[WhiteFideId "4157095"]
[WhiteElo "1863"]
[BlackElo "2160"]
[Result "1-0"]
[Round "08"]
[TimeControl "180+1"]
[Date "2022.04.13"]
[WhiteClock "0:00:50"]
[BlackClock "0:01:17"]

1. e4 {[%clk 0:03:00]}  c5 {[%clk 0:02:57]} 2. Nf3 {[%clk 0:03:00]}  Nc6 {[%clk 0:02:56]} 3. d4 {[%clk 0:03:00]}  cxd4 {[%clk 0:02:57]} 4. Nxd4 {[%clk 0:03:01]}  Nf6 {[%clk 0:02:57]} 5. Nc3 {[%clk 0:03:00]}  d6 {[%clk 0:02:57]} 6. h3 {[%clk 0:02:59]}  Qa5 {[%clk 0:02:56]} 7. Nb3 {[%clk 0:02:52]}  Qc7 {[%clk 0:02:55]} 8. g4 {[%clk 0:02:49]}  a6 {[%clk 0:02:52]} 9. Bg2 {[%clk 0:02:49]}  g6 {[%clk 0:02:50]} 10. g5 {[%clk 0:02:47]}  Nd7 {[%clk 0:02:50]} 11. Nd5 {[%clk 0:02:35]}  Qd8 {[%clk 0:02:46]} 12. O-O {[%clk 0:02:27]}  Bg7 {[%clk 0:02:46]} 13. Be3 {[%clk 0:02:22]}  O-O {[%clk 0:02:43]} 14. c3 {[%clk 0:02:21]}  e6 {[%clk 0:02:42]} 15. Nf4 {[%clk 0:02:10]}  Nde5 {[%clk 0:02:35]} 16. h4 {[%clk 0:02:07]}  b5 {[%clk 0:02:26]} 17. Qd2 {[%clk 0:02:05]}  Qe7 {[%clk 0:02:22]} 18. Rad1 {[%clk 0:02:04]}  Rd8 {[%clk 0:02:22]} 19. Nd3 {[%clk 0:01:55]}  Bb7 {[%clk 0:02:21]} 20. f4 {[%clk 0:01:53]}  Nc4 {[%clk 0:02:18]} 21. Qe2 {[%clk 0:01:53]}  Nxe3 {[%clk 0:02:18]} 22. Qxe3 {[%clk 0:01:54]}  Rac8 {[%clk 0:02:02]} 23. h5 {[%clk 0:01:35]}  b4 {[%clk 0:02:01]} 24. hxg6 {[%clk 0:01:34]}  hxg6 {[%clk 0:02:00]} 25. cxb4 {[%clk 0:01:22]}  a5 {[%clk 0:01:49]} 26. bxa5 {[%clk 0:01:20]}  Nxa5 {[%clk 0:01:48]} 27. Nxa5 {[%clk 0:01:17]}  Ba6 {[%clk 0:01:46]} 28. Nb3 {[%clk 0:01:13]}  Rc2 {[%clk 0:01:45]} 29. Rf2 {[%clk 0:01:12]}  Rc4 {[%clk 0:01:41]} 30. Qb6 {[%clk 0:01:05]}  Bb7 {[%clk 0:01:32]} 31. Rc1 {[%clk 0:00:53]}  Ra4 {[%clk 0:01:17]} 32. Rc7 {[%clk 0:00:50]} 1-0


[Site "https://www.chess.com"]

[Event "Titled Tuesday Blitz April 12 Late 2022"]
[White "Nozdrachev, Leonid"]
[Black "Senthilkumar, Pranav"]
[WhiteFideId "24113433"]
[BlackFideId "2083477"]
[WhiteElo "2242"]
[BlackElo "2383"]
[Result "0-1"]
[Round "08"]
[TimeControl "180+1"]
[Date "2022.04.13"]
[WhiteClock "0:01:17"]
[BlackClock "0:02:13"]

1. e4 {[%clk 0:03:00]}  e5 {[%clk 0:03:00]} 2. Nf3 {[%clk 0:02:56]}  Nc6 {[%clk 0:03:00]} 3. c3 {[%clk 0:02:57]}  Nf6 {[%clk 0:02:58]} 4. d4 {[%clk 0:02:56]}  exd4 {[%clk 0:02:57]} 5. e5 {[%clk 0:02:55]}  Nd5 {[%clk 0:02:57]} 6. cxd4 {[%clk 0:02:55]}  Bb4+ {[%clk 0:02:57]} 7. Bd2 {[%clk 0:02:54]}  O-O {[%clk 0:02:57]} 8. Bd3 {[%clk 0:02:54]}  d6 {[%clk 0:02:52]} 9. O-O {[%clk 0:02:49]}  Bg4 {[%clk 0:02:42]} 10. exd6 {[%clk 0:02:39]}  Nxd4 {[%clk 0:02:38]} 11. dxc7 {[%clk 0:02:32]}  Qf6 {[%clk 0:02:32]} 12. Bxb4 {[%clk 0:02:27]}  Nxf3+ {[%clk 0:02:31]} 13. gxf3 {[%clk 0:02:24]}  Bxf3 {[%clk 0:02:28]} 14. Qd2 {[%clk 0:01:57]}  Nf4 {[%clk 0:02:27]} 15. Rc1 {[%clk 0:01:25]}  Qg5+ {[%clk 0:02:23]} 16. Kf1 {[%clk 0:01:25]}  Qg2+ {[%clk 0:02:18]} 17. Ke1 {[%clk 0:01:25]}  Rfe8+ {[%clk 0:02:13]} 18. Qe3 {[%clk 0:01:20]}  Rxe3+ {[%clk 0:02:13]} 19. fxe3 {[%clk 0:01:17]}  Nxd3# {[%clk 0:02:13]} 0-1


[Site "https://www.chess.com"]

[Event "Titled Tuesday Blitz April 12 Late 2022"]
[White "Ozates, Tuna"]
[Black "Sochacki, Christophe"]
[WhiteFideId "6354521"]
[BlackFideId "662569"]
[WhiteElo "2553"]
[BlackElo "2674"]
[Result "0-1"]
[Round "08"]
[TimeControl "180+1"]
[Date "2022.04.13"]
[WhiteClock "0:00:01"]
[BlackClock "0:00:46"]

1. e4 {[%clk 0:03:00]}  e6 {[%clk 0:02:59]} 2. d4 {[%clk 0:03:00]}  d5 {[%clk 0:03:00]} 3. e5 {[%clk 0:03:01]}  c5 {[%clk 0:02:59]} 4. c3 {[%clk 0:03:01]}  Nc6 {[%clk 0:02:59]} 5. Nf3 {[%clk 0:03:02]}  Bd7 {[%clk 0:02:58]} 6. Bd3 {[%clk 0:02:59]}  Qb6 {[%clk 0:02:56]} 7. O-O {[%clk 0:02:52]}  cxd4 {[%clk 0:02:55]} 8. cxd4 {[%clk 0:02:53]}  Nxd4 {[%clk 0:02:54]} 9. Nxd4 {[%clk 0:02:54]}  Qxd4 {[%clk 0:02:55]} 10. Nc3 {[%clk 0:02:55]}  a6 {[%clk 0:02:44]} 11. Re1 {[%clk 0:02:48]}  Ne7 {[%clk 0:02:43]} 12. Qe2 {[%clk 0:02:34]}  Nc6 {[%clk 0:02:41]} 13. Be3 {[%clk 0:02:24]}  Qh4 {[%clk 0:02:34]} 14. g3 {[%clk 0:02:14]}  Qh3 {[%clk 0:02:19]} 15. Bf4 {[%clk 0:02:03]}  Bc5 {[%clk 0:02:17]} 16. Rac1 {[%clk 0:01:59]}  Ba7 {[%clk 0:02:16]} 17. Qd1 {[%clk 0:01:47]}  Bxf2+ {[%clk 0:01:40]} 18. Kxf2 {[%clk 0:01:45]}  Qxh2+ {[%clk 0:01:40]} 19. Kf1 {[%clk 0:01:40]}  g5 {[%clk 0:01:36]} 20. Bxg5 {[%clk 0:01:18]}  Qh3+ {[%clk 0:01:29]} 21. Kf2 {[%clk 0:01:15]}  Qh2+ {[%clk 0:01:30]} 22. Kf1 {[%clk 0:01:03]}  Qxg3 {[%clk 0:01:28]} 23. Qd2 {[%clk 0:00:32]}  Rg8 {[%clk 0:01:27]} 24. Be3 {[%clk 0:00:32]}  d4 {[%clk 0:01:15]} 25. Ne4 {[%clk 0:00:31]}  Qh3+ {[%clk 0:01:13]} 26. Ke2 {[%clk 0:00:27]}  dxe3 {[%clk 0:01:09]} 27. Nd6+ {[%clk 0:00:13]}  Ke7 {[%clk 0:01:08]} 28. Qxe3 {[%clk 0:00:06]}  Rg2+ {[%clk 0:00:58]} 29. Kd1 {[%clk 0:00:06]}  Rg3 {[%clk 0:00:55]} 30. Nf5+ {[%clk 0:00:02]}  exf5 {[%clk 0:00:52]} 31. Qc5+ {[%clk 0:00:03]}  Ke8 {[%clk 0:00:52]} 32. Bc4 {[%clk 0:00:02]}  Rd8 {[%clk 0:00:48]} 33. Kc2 {[%clk 0:00:01]}  Be6 {[%clk 0:00:48]} 34. Kb1 {[%clk 0:00:01]}  Qg4 {[%clk 0:00:45]} 35. Bxe6 {[%clk 0:00:01]}  fxe6 {[%clk 0:00:46]} 0-1


[Site "https://www.chess.com"]

[Event "Titled Tuesday Blitz April 12 Late 2022"]
[White "Papp, Levente"]
[Black "Pesotskiy, Mikhail"]
[WhiteFideId "751243"]
[BlackFideId "34164453"]
[WhiteElo "2308"]
[BlackElo "2010"]
[Result "1/2-1/2"]
[Round "08"]
[TimeControl "180+1"]
[Date "2022.04.13"]
[WhiteClock "0:00:17"]
[BlackClock "0:00:17"]

1. c4 {[%clk 0:02:57]}  e5 {[%clk 0:02:59]} 2. g3 {[%clk 0:02:57]}  Nc6 {[%clk 0:03:00]} 3. Nc3 {[%clk 0:02:57]}  Bc5 {[%clk 0:03:00]} 4. Bg2 {[%clk 0:02:57]}  a6 {[%clk 0:03:00]} 5. e3 {[%clk 0:02:57]}  d6 {[%clk 0:03:00]} 6. Nge2 {[%clk 0:02:58]}  Ba7 {[%clk 0:03:01]} 7. O-O {[%clk 0:02:57]}  h5 {[%clk 0:03:01]} 8. h3 {[%clk 0:02:57]}  h4 {[%clk 0:03:00]} 9. g4 {[%clk 0:02:58]}  f5 {[%clk 0:03:01]} 10. gxf5 {[%clk 0:02:59]}  Bxf5 {[%clk 0:03:02]} 11. d4 {[%clk 0:02:59]}  Nf6 {[%clk 0:03:02]} 12. e4 {[%clk 0:02:59]}  Bg6 {[%clk 0:02:32]} 13. d5 {[%clk 0:02:49]}  Nd4 {[%clk 0:02:32]} 14. Kh2 {[%clk 0:02:33]}  Qe7 {[%clk 0:02:29]} 15. f4 {[%clk 0:02:32]}  Nxe2 {[%clk 0:02:27]} 16. Qxe2 {[%clk 0:02:30]}  exf4 {[%clk 0:02:09]} 17. Bxf4 {[%clk 0:02:31]}  O-O-O {[%clk 0:02:10]} 18. e5 {[%clk 0:02:23]}  dxe5 {[%clk 0:02:10]} 19. Qxe5 {[%clk 0:02:23]}  Rhe8 {[%clk 0:02:05]} 20. Qxe7 {[%clk 0:02:18]}  Rxe7 {[%clk 0:02:06]} 21. Bg5 {[%clk 0:02:13]}  Bd4 {[%clk 0:02:01]} 22. Rae1 {[%clk 0:01:58]}  Rde8 {[%clk 0:01:54]} 23. Rxe7 {[%clk 0:01:53]}  Rxe7 {[%clk 0:01:55]} 24. Bxh4 {[%clk 0:01:36]}  Bd3 {[%clk 0:01:38]} 25. Rd1 {[%clk 0:01:34]}  Be5+ {[%clk 0:01:38]} 26. Bg3 {[%clk 0:01:34]}  Bxc4 {[%clk 0:01:38]} 27. Bxe5 {[%clk 0:01:24]}  Rxe5 {[%clk 0:01:39]} 28. b3 {[%clk 0:01:25]}  Re3 {[%clk 0:01:22]} 29. Na4 {[%clk 0:00:41]}  Bb5 {[%clk 0:00:58]} 30. Nc5 {[%clk 0:00:41]}  Re2 {[%clk 0:00:53]} 31. a4 {[%clk 0:00:37]}  Bd7 {[%clk 0:00:50]} 32. Rd4 {[%clk 0:00:37]}  Rc2 {[%clk 0:00:42]} 33. b4 {[%clk 0:00:32]}  b6 {[%clk 0:00:39]} 34. Nxd7 {[%clk 0:00:30]}  Kxd7 {[%clk 0:00:40]} 35. Kg3 {[%clk 0:00:25]}  Kd6 {[%clk 0:00:39]} 36. Bf3 {[%clk 0:00:24]}  Ra2 {[%clk 0:00:36]} 37. b5 {[%clk 0:00:22]}  axb5 {[%clk 0:00:30]} 38. axb5 {[%clk 0:00:23]}  Rb2 {[%clk 0:00:31]} 39. Rc4 {[%clk 0:00:16]}  Rxb5 {[%clk 0:00:31]} 40. h4 {[%clk 0:00:13]}  Rb3 {[%clk 0:00:19]} 41. Kf4 {[%clk 0:00:13]}  Nxd5+ {[%clk 0:00:19]} 42. Bxd5 {[%clk 0:00:13]}  Kxd5 {[%clk 0:00:20]} 43. Rxc7 {[%clk 0:00:14]}  Rh3 {[%clk 0:00:15]} 44. Kg5 {[%clk 0:00:13]}  Rh1 {[%clk 0:00:16]} 45. Rxg7 {[%clk 0:00:13]}  b5 {[%clk 0:00:14]} 46. h5 {[%clk 0:00:13]}  Kc4 {[%clk 0:00:14]} 47. h6 {[%clk 0:00:13]}  b4 {[%clk 0:00:15]} 48. Rc7+ {[%clk 0:00:13]}  Kd3 {[%clk 0:00:15]} 49. Rb7 {[%clk 0:00:14]}  Kc3 {[%clk 0:00:15]} 50. Kg6 {[%clk 0:00:14]}  b3 {[%clk 0:00:15]} 51. h7 {[%clk 0:00:15]}  b2 {[%clk 0:00:15]} 52. Kg7 {[%clk 0:00:16]}  Kc2 {[%clk 0:00:16]} 53. Rxb2+ {[%clk 0:00:15]}  Kxb2 {[%clk 0:00:16]} 54. h8=Q {[%clk 0:00:16]}  Rxh8 {[%clk 0:00:17]} 55. Kxh8 {[%clk 0:00:17]} 1/2-1/2


[Site "https://www.chess.com"]

[Event "Titled Tuesday Blitz April 12 Late 2022"]
[White "Papp, Petra"]
[Black "Hardaway, Brewington"]
[WhiteFideId "739049"]
[BlackFideId "30941849"]
[WhiteElo "2259"]
[BlackElo "1768"]
[Result "0-1"]
[Round "08"]
[TimeControl "180+1"]
[Date "2022.04.13"]
[WhiteClock "0:00:02"]
[BlackClock "0:01:30"]

1. e4 {[%clk 0:03:00]}  d6 {[%clk 0:02:58]} 2. d4 {[%clk 0:03:00]}  Nd7 {[%clk 0:02:58]} 3. Nc3 {[%clk 0:03:00]}  c5 {[%clk 0:02:58]} 4. Nf3 {[%clk 0:02:58]}  g6 {[%clk 0:02:58]} 5. Be3 {[%clk 0:02:53]}  cxd4 {[%clk 0:02:54]} 6. Nxd4 {[%clk 0:02:52]}  Bg7 {[%clk 0:02:54]} 7. Qd2 {[%clk 0:02:51]}  Ngf6 {[%clk 0:02:54]} 8. f3 {[%clk 0:02:51]}  O-O {[%clk 0:02:55]} 9. Bc4 {[%clk 0:02:52]}  Ne5 {[%clk 0:02:55]} 10. Bb3 {[%clk 0:02:51]}  Bd7 {[%clk 0:02:56]} 11. O-O-O {[%clk 0:02:50]}  a5 {[%clk 0:02:56]} 12. a4 {[%clk 0:02:49]}  Rc8 {[%clk 0:02:55]} 13. Kb1 {[%clk 0:02:47]}  Nc4 {[%clk 0:02:56]} 14. Bxc4 {[%clk 0:02:47]}  Rxc4 {[%clk 0:02:56]} 15. b3 {[%clk 0:02:47]}  Rc8 {[%clk 0:02:55]} 16. g4 {[%clk 0:02:46]}  Bc6 {[%clk 0:02:52]} 17. g5 {[%clk 0:02:40]}  Nd7 {[%clk 0:02:50]} 18. h4 {[%clk 0:02:39]}  Ne5 {[%clk 0:02:45]} 19. h5 {[%clk 0:02:35]}  Nxf3 {[%clk 0:02:36]} 20. Nxf3 {[%clk 0:02:26]}  Bxc3 {[%clk 0:02:35]} 21. Qxc3 {[%clk 0:02:08]}  Bxe4 {[%clk 0:02:26]} 22. Qd4 {[%clk 0:01:48]}  Bxf3 {[%clk 0:02:19]} 23. hxg6 {[%clk 0:01:39]}  fxg6 {[%clk 0:02:15]} 24. Bc1 {[%clk 0:00:50]}  e5 {[%clk 0:01:57]} 25. Qh4 {[%clk 0:00:41]}  Qc7 {[%clk 0:01:55]} 26. c4 {[%clk 0:00:31]}  Bxd1 {[%clk 0:01:52]} 27. Rxd1 {[%clk 0:00:30]}  Rf3 {[%clk 0:01:47]} 28. Ka2 {[%clk 0:00:28]}  Qf7 {[%clk 0:01:42]} 29. Rxd6 {[%clk 0:00:22]}  b5 {[%clk 0:01:39]} 30. Qe4 {[%clk 0:00:05]}  bxc4 {[%clk 0:01:36]} 31. Qxe5 {[%clk 0:00:03]}  cxb3+ {[%clk 0:01:34]} 32. Kb1 {[%clk 0:00:03]}  b2 {[%clk 0:01:30]} 33. Bxb2 {[%clk 0:00:02]}  Rf1+ {[%clk 0:01:30]} 0-1


[Site "https://www.chess.com"]

[Event "Titled Tuesday Blitz April 12 Late 2022"]
[White "Prohorov, Olexandr"]
[Black "Stanisz, Patryk"]
[WhiteFideId "14105578"]
[BlackFideId "1123106"]
[WhiteElo "1993"]
[BlackElo "1833"]
[Result "1/2-1/2"]
[Round "08"]
[TimeControl "180+1"]
[Date "2022.04.13"]
[WhiteClock "0:02:52"]
[BlackClock "0:02:37"]

1. e4 {[%clk 0:03:00]}  c5 {[%clk 0:02:54]} 2. c3 {[%clk 0:02:59]}  Nf6 {[%clk 0:02:53]} 3. e5 {[%clk 0:02:59]}  Nd5 {[%clk 0:02:52]} 4. Nf3 {[%clk 0:03:00]}  Nc6 {[%clk 0:02:51]} 5. Bc4 {[%clk 0:02:59]}  Nb6 {[%clk 0:02:49]} 6. Bb3 {[%clk 0:03:00]}  d5 {[%clk 0:02:49]} 7. exd6 {[%clk 0:02:57]}  Qxd6 {[%clk 0:02:49]} 8. O-O {[%clk 0:02:55]}  Bf5 {[%clk 0:02:45]} 9. d4 {[%clk 0:02:51]}  cxd4 {[%clk 0:02:45]} 10. cxd4 {[%clk 0:02:52]}  e6 {[%clk 0:02:45]} 11. a4 {[%clk 0:02:52]}  Be7 {[%clk 0:02:44]} 12. a5 {[%clk 0:02:52]}  Nd5 {[%clk 0:02:43]} 13. a6 {[%clk 0:02:52]}  b6 {[%clk 0:02:37]} 14. Nc3 {[%clk 0:02:52]} 1/2-1/2


[Site "https://www.chess.com"]

[Event "Titled Tuesday Blitz April 12 Late 2022"]
[White "Putri, Regita Desyari"]
[Black "Hartikainen, Jarmo"]
[WhiteFideId "7109083"]
[BlackFideId "503134"]
[WhiteElo "1930"]
[BlackElo "2109"]
[Result "1-0"]
[Round "08"]
[TimeControl "180+1"]
[Date "2022.04.13"]
[WhiteClock "0:01:05"]
[BlackClock "0:00:05"]

1. c4 {[%clk 0:02:59]}  Nf6 {[%clk 0:02:57]} 2. Nc3 {[%clk 0:02:59]}  g6 {[%clk 0:02:56]} 3. g3 {[%clk 0:02:58]}  Bg7 {[%clk 0:02:56]} 4. Bg2 {[%clk 0:02:59]}  O-O {[%clk 0:02:55]} 5. Nf3 {[%clk 0:03:00]}  d5 {[%clk 0:02:52]} 6. d4 {[%clk 0:03:01]}  c5 {[%clk 0:02:45]} 7. O-O {[%clk 0:03:02]}  dxc4 {[%clk 0:02:36]} 8. dxc5 {[%clk 0:02:59]}  Nc6 {[%clk 0:02:31]} 9. Qa4 {[%clk 0:02:57]}  Bd7 {[%clk 0:02:08]} 10. Qxc4 {[%clk 0:02:54]}  Rc8 {[%clk 0:02:04]} 11. Rd1 {[%clk 0:02:48]}  Qa5 {[%clk 0:01:55]} 12. Be3 {[%clk 0:02:41]}  Nb4 {[%clk 0:01:41]} 13. Rac1 {[%clk 0:02:32]}  a6 {[%clk 0:01:39]} 14. a3 {[%clk 0:02:28]}  Nc6 {[%clk 0:01:26]} 15. h3 {[%clk 0:02:15]}  Be6 {[%clk 0:01:25]} 16. Qa4 {[%clk 0:02:06]}  Qxa4 {[%clk 0:01:20]} 17. Nxa4 {[%clk 0:02:07]}  Bb3 {[%clk 0:01:20]} 18. Nb6 {[%clk 0:02:07]}  Bxd1 {[%clk 0:01:17]} 19. Nxc8 {[%clk 0:02:00]}  Bxe2 {[%clk 0:01:16]} 20. Nb6 {[%clk 0:02:01]}  Rd8 {[%clk 0:01:05]} 21. Rc2 {[%clk 0:01:49]}  Bd3 {[%clk 0:00:51]} 22. Rc1 {[%clk 0:01:27]}  Nd7 {[%clk 0:00:42]} 23. Na4 {[%clk 0:01:20]}  e5 {[%clk 0:00:18]} 24. Ne1 {[%clk 0:01:19]}  e4 {[%clk 0:00:18]} 25. Nc3 {[%clk 0:01:19]}  Nce5 {[%clk 0:00:17]} 26. Nd5 {[%clk 0:01:15]}  Kf8 {[%clk 0:00:15]} 27. b4 {[%clk 0:01:08]}  f5 {[%clk 0:00:15]} 28. Bg5 {[%clk 0:01:05]}  Nf6 {[%clk 0:00:13]} 29. Nxf6 {[%clk 0:01:04]}  Bxf6 {[%clk 0:00:13]} 30. Bxf6 {[%clk 0:01:05]}  Rd5 {[%clk 0:00:13]} 31. Bxe5 {[%clk 0:01:05]}  Rxe5 {[%clk 0:00:13]} 32. Nxd3 {[%clk 0:01:06]}  exd3 {[%clk 0:00:14]} 33. Rd1 {[%clk 0:01:07]}  Re6 {[%clk 0:00:05]} 34. Rxd3 {[%clk 0:01:06]}  Ke7 {[%clk 0:00:06]} 35. Bxb7 {[%clk 0:01:06]}  Re2 {[%clk 0:00:05]} 36. Bxa6 {[%clk 0:01:05]}  Ra2 {[%clk 0:00:05]} 37. c6 {[%clk 0:01:05]} 1-0


[Site "https://www.chess.com"]